Workbook

Sheet Inicio DH
A23: Descargue la versión Kindle
K32: Miguel Cervantes Jiménez

Sheet Cobb-Douglas DH (hidden)
A1: EQUILIBRIO DEL CONSUMIDOR
A3: PREFERENCIAS COBB-DOUGLAS: ÓPTIMO INTERIOR
B5: RECTA DE GASTO
B6: m | C6: p1 | D6: x1 | E6: p2 | F6: x2
B7: ='Oculto DH'!A30 -> 594.2 | C7: 2.0 | D7: =D20 -> 118.8 | E7: 4.0 | F7: =F20 -> 89.1
B8: Inserte los datos correspondientes
B10: PARÁMETROS DE LA RECTA DE GASTO
B11: x2 | C11: b0 | D11: b1 | E11: x1
B12: =C12+(D12*E12) -> 89.1 | C12: =B7/E7 -> 148.6 | D12: =C7/E7*-1 -> (0.5) | E12: =D7 -> 118.8
B18: PARÁMETROS DE FUNCIÓN COBB-DOUGLAS
B19: u | C19: a | D19: x1* | E19: 1-a | F19: x2*
B20: 100.0 | C20: 0.4 | D20: ='Oculto DH'!E27 -> 118.8 | E20: =1-C20 -> 0.6 | F20: ='Oculto DH'!F27 -> 89.1
B22: ='Oculto DH'!B45 -> 0.0000 | C22: ='Oculto DH'!C45 -> -0.3366 | D22: ='Oculto DH'!D45 -> -0.6732 | E22: ='Oculto DH'!F45 -> Determinante
B23: ='Oculto DH'!B46 -> -0.3366 | C23: ='Oculto DH'!C46 -> 0.0017 | D23: ='Oculto DH'!D46 -> -0.0023 | E23: ='Oculto DH'!F46 -> -0.00750
B24: ='Oculto DH'!B47 -> -0.6732 | C24: ='Oculto DH'!C47 -> -0.0823 | D24: ='Oculto DH'!D47 -> -0.1097 | E24: ='Oculto DH'!F47 -> Mínimo
B26: Títulos
B27: Resultados
B28: Insertar datos
B29: Cantidad de equilibrio

Sheet Oculto DH (hidden)
A1: COBB-DOUGLAS | C1: Recta Presupuestaria | J1: Curva de Indiferencia | M1: REGULARES | O1: Recta Presupuestaria | V1: Curva de Indiferencia | Y1: NEUTRALES | AB1: Recta Presupuestaria | AD1: Curva de Indiferencia | AG1: MALES | AJ1: Recta Presupuestaria | AL1: Curva de Indiferencia | AO1: COMPLEMENTARIOS PERFECTOS | AR1: Recta Presupuestaria | AT1: Curva de Indiferencia | BC1: SUSTITUTOS PERFECTOS | BF1: Recta Presupuestaria | BH1: Curva de Indiferencia | BK1: COBB-DOUGLAS | BM1: Recta Presupuestaria | BT1: Curva de Indiferencia | BX1: COBB-DOUGLAS | CA1: Recta Presupuestaria | CG1: Curva de Indiferencia | CL1: Stone-Geary | CO1: Recta Presupuestaria | CU1: Curva de Indiferencia
A2: Unidades | B2: ponderador | C2: x1 | D2: x2 | E2: x1lin | G2: x2lin | I2: Cota | J2: x1 | K2: x2 | M2: Unidades | N2: ponderador | O2: x1 | P2: x2 | Q2: x1lin | S2: x2lin | U2: Cota | V2: x1 | W2: x2 | Y2: Unidades | Z2: ponderador | AB2: x1 | AC2: x2 | AD2: x1lin | AG2: Unidades | AH2: ponderador | AJ2: x1 | AK2: x2 | AL2: x1lin | AO2: Unidades | AP2: ponderador | AR2: x1 | AS2: x2 | AT2: vertice | AU2: x2line | AV2: x1line | AX2: X1Line | AZ2: X2Line | BC2: Unidades | BD2: ponderador | BF2: x1 | BG2: x2 | BH2: x1lin | BI2: sip1>p2 | BK2: Unidades | BL2: ponderador | BM2: x1 | BN2: x2 | BO2: x1lin | BQ2: x2lin | BS2: Cota | BT2: x1 | BU2: x2 | BW2: Unidades | BX2: Unidades | BY2: ponderador | BZ2: ponderador | CA2: x1 | CB2: x2 | CC2: x1lin | CE2: x2lin | CG2: x1 | CH2: x2 | CK2: Unidades | CL2: Unidades | CM2: ponderador | CN2: ponderador | CO2: x1 | CP2: x2 | CQ2: x1lin | CS2: x2lin | CU2: x1 | CV2: x2 | CW2: s1 | CY2: s2
A3: 1 | B3: 0 | C3: =$A$30/$B$30*B3 -> 0 | D3: ='Cobb-Douglas DH'!$C$12+('Cobb-Douglas DH'!$D$12*'Oculto DH'!C3) -> 148.55 | E3: =$E$27 -> 118.8401639 | F3: =$F$27*B3 -> 0 | G3: =$E$27*'Oculto DH'!B3 -> 0 | H3: =$F$27 -> 89.1301229 | M3: 1 | N3: 0 | O3: =$P$25/$P$26*N3 -> 0 | P3: =($P$25/$P$27)-(($P$26/$P$27)*O3) -> 50.00 | Q3: =$V$13 -> 54.00 | R3: =T3*N3 -> 0 | S3: =Q3*N3 -> 0 | T3: =$W$13 -> 23.00 | Y3: 1 | Z3: 0 | AA3: 1.00 | AB3: ='Neutrales DH'!$B$20*Z3 -> 0 | AC3: =('Neutrales DH'!$B$20*'Neutrales DH'!$C$7/'Neutrales DH'!$E$7)*AA3 -> 30.00 | AD3: =MAX($AB$3:$AB$23) -> 100.00 | AE3: =$AC$3*Z3 -> 0 | AG3: 1 | AH3: 0 | AI3: 1.00 | AJ3: =('Males DH'!$B$20)*'Oculto DH'!AH3 -> 0 | AK3: =AI3*('Males DH'!$C$7*'Males DH'!$B$20/'Males DH'!$E$7) -> 50.00 | AL3: =$AJ$23+(('Males DH'!$C$20/'Males DH'!$E$20)*'Oculto DH'!AJ3) -> 100.00 | AM3: 0 | AO3: 1 | AP3: 0 | AQ3: 1.00 | AR3: =($AR$25/$AR$26)*AP3 -> 0 | AS3: =($AR$25/$AR$27)-(($AR$26/$AR$27)*AR3) -> 150.00 | AT3: =MIN($AR$28:$AR$29) -> 50.00 | AU3: =$AR$29+(($AS$3-$AR$29)*AP3) -> 100.00 | AV3: =AT3+(($AR$23-AT3)*AP3) -> 50.00 | AW3: =$AR$29 -> 100.00 | AX3: =$AR$28 -> 50.00 | AY3: =$AR$29*AP3 -> 0 | AZ3: =$AR$28*AP3 -> 0 | BA3: =$AR$29 -> 100.00 | BC3: 1 | BD3: 0 | BE3: 1.00 | BF3: =$BE$26*BD3 -> 0 | BG3: =$BE$27*BE3 -> 50.00 | BH3: =IF($BF$26<=$BG$26,BD37,BF37) -> 0 | BI3: =IF($BF$26<=$BG$26,BE37,BG37) -> 100.00 | BK3: 1 | BL3: 0 | BM3: =$BS$28*BL3 -> 0 | BN3: =$BS$29+($BS$30*BM3) -> 26.37 | BO3: =$BO$27 -> 21.97145176 | BP3: =$BP$27*BL3 -> 0 | BQ3: =$BO$27*BL3 -> 0 | BR3: =$BP$27 -> 13.18287105 | BW3: 0.01 | BX3: 1 | BY3: 1.00 | BZ3: 0 | CA3: =($BY$26/$BZ$26)*BZ3 -> 0 | CB3: =($BY$26/$CB$26)*BY3 -> 10.00 | CC3: =$CE$26 -> 10.0 | CD3: =$CF$26*BZ3 -> 0 | CE3: =$CE$26*BZ3 -> 0 | CF3: =$CF$26 -> 9.0 | CG3: =$CF$26*BW3 -> 0.09 | CH3: =$CD$26-(LN(CG3)) -> 13.71 | CK3: 0.01 | CL3: 1 | CM3: 1.00 | CN3: 0 | CO3: =($CK$33/$CL$33)*CN3 -> 0 | CP3: =$CM$26/$CP$26-$CN$26/$CP$26*CO3 -> 109.68 | CQ3: =$CS$26 -> 79.7 | CR3: =$CT$26*CN3 -> 0 | CS3: =$CS$26*CN3 -> 0 | CT3: =$CT$26 -> 69.8 | CW3: =$CM$48 -> 20.0 | CX3: =$CM$41*CN3 -> 0 | CY3: =$CM$40*CN3 -> 0 | CZ3: =$CO$48 -> 40.0
A4: 2 | B4: 0.05 | C4: =$A$30/$B$30*B4 -> 14.86 | D4: ='Cobb-Douglas DH'!$C$12+('Cobb-Douglas DH'!$D$12*'Oculto DH'!C4) -> 141.12 | E4: =$E$27 -> 118.8401639 | F4: 4.46 | G4: =$E$27*'Oculto DH'!B4 -> 5.94 | H4: =$F$27 -> 89.1301229 | I4: 0.28 | M4: 2 | N4: 0.05 | O4: =$P$25/$P$26*N4 -> 5.00 | P4: =($P$25/$P$27)-(($P$26/$P$27)*O4) -> 47.50 | Q4: =$V$13 -> 54.00 | R4: =T4*N4 -> 1.15 | S4: =Q4*N4 -> 2.70 | T4: =$W$13 -> 23.00 | U4: =$U$25 -> 0.1 | V4: =$V$13*U4 -> 5.40 | W4: =($Q$26-($Q$30*V4)-($Q$28*$Q$30))/(V4+$Q$28) -> 394.65 | Y4: 2 | Z4: 0.05 | AA4: 0.95 | AB4: ='Neutrales DH'!$B$20*Z4 -> 5.00 | AC4: =('Neutrales DH'!$B$20*'Neutrales DH'!$C$7/'Neutrales DH'!$E$7)*AA4 -> 28.50 | AD4: =MAX($AB$3:$AB$23) -> 100.00 | AE4: =$AC$3*Z4 -> 1.50 | AG4: 2 | AH4: 0.05 | AI4: 0.95 | AJ4: =('Males DH'!$B$20)*'Oculto DH'!AH4 -> 5.00 | AK4: =AI4*('Males DH'!$C$7*'Males DH'!$B$20/'Males DH'!$E$7) -> 47.50 | AL4: =$AJ$23+(('Males DH'!$C$20/'Males DH'!$E$20)*'Oculto DH'!AJ4) -> 105.00 | AM4: 1.00 | AO4: 2 | AP4: 0.05 | AQ4: 0.95 | AR4: =($AR$25/$AR$26)*AP4 -> 7.50 | AS4: =($AR$25/$AR$27)-(($AR$26/$AR$27)*AR4) -> 142.50 | AT4: 50.00 | AU4: 102.50 | AV4: =AT4+(($AR$23-AT4)*AP4) -> 55.00 | AW4: =$AR$29 -> 100.00 | AX4: =$AR$28 -> 50.00 | AY4: =$AR$29*AP4 -> 5.00 | AZ4: =$AR$28*AP4 -> 2.50 | BA4: =$AR$29 -> 100.00 | BC4: 2 | BD4: 0.05 | BE4: 0.95 | BF4: =$BE$26*BD4 -> 5.00 | BG4: =$BE$27*BE4 -> 47.50 | BH4: =IF($BF$26<=$BG$26,BD38,BF38) -> 5.00 | BI4: =IF($BF$26<=$BG$26,BE38,BG38) -> 95.00 | BK4: 2 | BL4: 0.05 | BM4: =$BS$28*BL4 -> 2.20 | BN4: =$BS$29+($BS$30*BM4) -> 25.05 | BO4: =$BO$27 -> 21.97145176 | BP4: =$BP$27*BL4 -> 0.66 | BQ4: =$BO$27*BL4 -> 1.10 | BR4: =$BP$27 -> 13.18287105 | BS4: 0.28 | BW4: 0.1 | BX4: 2 | BY4: 0.95 | BZ4: 0.05 | CA4: =($BY$26/$BZ$26)*BZ4 -> 5.00 | CB4: =($BY$26/$CB$26)*BY4 -> 9.50 | CC4: =$CE$26 -> 10.0 | CD4: =$CF$26*BZ4 -> 0.45 | CE4: =$CE$26*BZ4 -> 0.50 | CF4: =$CF$26 -> 9.0 | CG4: =$CF$26*BW4 -> 0.90 | CH4: =$CD$26-(LN(CG4)) -> 11.41 | CK4: 0.1 | CL4: 2 | CM4: 0.95 | CN4: 0.05 | CO4: =($CK$33/$CL$33)*CN4 -> 10.97 | CP4: =$CM$26/$CP$26-$CN$26/$CP$26*CO4 -> 104.20 | CQ4: =$CS$26 -> 79.7 | CR4: =$CT$26*CN4 -> 3.49 | CS4: =$CS$26*CN4 -> 3.98 | CT4: =$CT$26 -> 69.8 | CW4: =$CM$48 -> 20.0 | CX4: =$CM$41*CN4 -> 5.48 | CY4: =$CM$40*CN4 -> 10.97 | CZ4: =$CO$48 -> 40.0
A5: 3 | B5: 0.10 | C5: 29.71 | D5: ='Cobb-Douglas DH'!$C$12+('Cobb-Douglas DH'!$D$12*'Oculto DH'!C5) -> 133.70 | E5: 118.8401639 | F5: 8.91 | G5: =$E$27*'Oculto DH'!B5 -> 11.88 | H5: 89.1301229 | I5: 0.36 | M5: 3 | N5: 0.10 | O5: 10.00 | P5: 45.00 | Q5: 54.00 | R5: 2.30 | S5: 5.40 | T5: 23.00 | U5: =U4+$U$25 -> 0.2 | V5: 10.80 | W5: 150.64 | Y5: 3 | Z5: 0.10 | AA5: 0.90 | AB5: ='Neutrales DH'!$B$20*Z5 -> 10.00 | AC5: =('Neutrales DH'!$B$20*'Neutrales DH'!$C$7/'Neutrales DH'!$E$7)*AA5 -> 27.00 | AD5: 100.00 | AE5: 3.00 | AG5: 3 | AH5: 0.10 | AI5: 0.90 | AJ5: =('Males DH'!$B$20)*'Oculto DH'!AH5 -> 10.00 | AK5: =AI5*('Males DH'!$C$7*'Males DH'!$B$20/'Males DH'!$E$7) -> 45.00 | AL5: =$AJ$23+(('Males DH'!$C$20/'Males DH'!$E$20)*'Oculto DH'!AJ5) -> 110.00 | AM5: 2.00 | AO5: 3 | AP5: 0.10 | AQ5: 0.90 | AR5: 15.00 | AS5: 135.00 | AT5: 50.00 | AU5: 105.00 | AV5: 60.00 | AW5: 100.00 | AX5: 50.00 | AY5: 10.00 | AZ5: 5.00 | BA5: 100.00 | BC5: 3 | BD5: 0.10 | BE5: 0.90 | BF5: 10.00 | BG5: 45.00 | BH5: 10.00 | BI5: 90.00 | BK5: 3 | BL5: 0.10 | BM5: 4.39 | BN5: 23.73 | BO5: 21.97145176 | BP5: 1.32 | BQ5: 2.20 | BR5: 13.18287105 | BS5: 0.36 | BW5: 0.2 | BX5: 3 | BY5: 0.90 | BZ5: 0.10 | CA5: 10.00 | CB5: 9.00 | CC5: 10.0 | CD5: 0.90 | CE5: 1.00 | CF5: 9.0 | CG5: 1.80 | CH5: 10.71 | CK5: 0.2 | CL5: 3 | CM5: 0.90 | CN5: 0.10 | CO5: 21.94 | CP5: 98.71 | CQ5: 79.7 | CR5: 6.98 | CS5: 7.97 | CT5: 69.8 | CW5: 20.0 | CX5: 10.97 | CY5: 21.94 | CZ5: 40.0
A6: 4 | B6: 0.15 | C6: 44.57 | D6: ='Cobb-Douglas DH'!$C$12+('Cobb-Douglas DH'!$D$12*'Oculto DH'!C6) -> 126.27 | E6: 118.8401639 | F6: 13.37 | G6: =$E$27*'Oculto DH'!B6 -> 17.83 | H6: 89.1301229 | I6: 0.44 | M6: 4 | N6: 0.15 | O6: 15.00 | P6: 42.50 | Q6: 54.00 | R6: 3.45 | S6: 8.10 | T6: 23.00 | U6: =U5+$U$25 -> 0.3 | V6: 16.20 | W6: 92.21 | Y6: 4 | Z6: 0.15 | AA6: 0.85 | AB6: ='Neutrales DH'!$B$20*Z6 -> 15.00 | AC6: =('Neutrales DH'!$B$20*'Neutrales DH'!$C$7/'Neutrales DH'!$E$7)*AA6 -> 25.50 | AD6: 100.00 | AE6: 4.50 | AG6: 4 | AH6: 0.15 | AI6: 0.85 | AJ6: =('Males DH'!$B$20)*'Oculto DH'!AH6 -> 15.00 | AK6: =AI6*('Males DH'!$C$7*'Males DH'!$B$20/'Males DH'!$E$7) -> 42.50 | AL6: =$AJ$23+(('Males DH'!$C$20/'Males DH'!$E$20)*'Oculto DH'!AJ6) -> 115.00 | AM6: 3.00 | AO6: 4 | AP6: 0.15 | AQ6: 0.85 | AR6: 22.50 | AS6: 127.50 | AT6: 50.00 | AU6: 107.50 | AV6: 65.00 | AW6: 100.00 | AX6: 50.00 | AY6: 15.00 | AZ6: 7.50 | BA6: 100.00 | BC6: 4 | BD6: 0.15 | BE6: 0.85 | BF6: 15.00 | BG6: 42.50 | BH6: 15.00 | BI6: 85.00 | BK6: 4 | BL6: 0.15 | BM6: 6.59 | BN6: 22.41 | BO6: 21.97145176 | BP6: 1.98 | BQ6: 3.30 | BR6: 13.18287105 | BS6: 0.44 | BT6: =BM6 -> 6.59 | BU6: =($BP$28/(BT6^($BO$26)))^(1/$BP$26) -> 43.94 | BW6: 0.3 | BX6: 4 | BY6: 0.85 | BZ6: 0.15 | CA6: 15.00 | CB6: 8.50 | CC6: 10.0 | CD6: 1.35 | CE6: 1.50 | CF6: 9.0 | CG6: 2.70 | CH6: 10.31 | CK6: 0.3 | CL6: 4 | CM6: 0.85 | CN6: 0.15 | CO6: 32.90 | CP6: 93.23 | CQ6: 79.7 | CR6: 10.48 | CS6: 11.95 | CT6: 69.8 | CW6: 20.0 | CX6: 16.45 | CY6: 32.90 | CZ6: 40.0
A7: 5 | B7: 0.20 | C7: 59.42 | D7: ='Cobb-Douglas DH'!$C$12+('Cobb-Douglas DH'!$D$12*'Oculto DH'!C7) -> 118.84 | E7: 118.8401639 | F7: 17.83 | G7: =$E$27*'Oculto DH'!B7 -> 23.77 | H7: 89.1301229 | I7: 0.52 | M7: 5 | N7: 0.20 | O7: 20.00 | P7: 40.00 | Q7: 54.00 | R7: 4.60 | S7: 10.80 | T7: 23.00 | U7: 0.4 | V7: 21.60 | W7: 65.98 | Y7: 5 | Z7: 0.20 | AA7: 0.80 | AB7: ='Neutrales DH'!$B$20*Z7 -> 20.00 | AC7: =('Neutrales DH'!$B$20*'Neutrales DH'!$C$7/'Neutrales DH'!$E$7)*AA7 -> 24.00 | AD7: 100.00 | AE7: 6.00 | AG7: 5 | AH7: 0.20 | AI7: 0.80 | AJ7: =('Males DH'!$B$20)*'Oculto DH'!AH7 -> 20.00 | AK7: =AI7*('Males DH'!$C$7*'Males DH'!$B$20/'Males DH'!$E$7) -> 40.00 | AL7: =$AJ$23+(('Males DH'!$C$20/'Males DH'!$E$20)*'Oculto DH'!AJ7) -> 120.00 | AM7: 4.00 | AO7: 5 | AP7: 0.20 | AQ7: 0.80 | AR7: 30.00 | AS7: 120.00 | AT7: 50.00 | AU7: 110.00 | AV7: 70.00 | AW7: 100.00 | AX7: 50.00 | AY7: 20.00 | AZ7: 10.00 | BA7: 100.00 | BC7: 5 | BD7: 0.20 | BE7: 0.80 | BF7: 20.00 | BG7: 40.00 | BH7: 20.00 | BI7: 80.00 | BK7: 5 | BL7: 0.20 | BM7: 8.79 | BN7: 21.09 | BO7: 21.97145176 | BP7: 2.64 | BQ7: 4.39 | BR7: 13.18287105 | BS7: 0.52 | BT7: =BM7 -> 8.79 | BU7: 32.96 | BW7: 0.4 | BX7: 5 | BY7: 0.80 | BZ7: 0.20 | CA7: 19.99 | CB7: 8.00 | CC7: 10.0 | CD7: 1.80 | CE7: 2.00 | CF7: 9.0 | CG7: 3.60 | CH7: 10.02 | CK7: 0.4 | CL7: 5 | CM7: 0.80 | CN7: 0.20 | CO7: 43.87 | CP7: 87.74 | CQ7: 79.7 | CR7: 13.97 | CS7: 15.94 | CT7: 69.8 | CW7: 20.0 | CX7: 21.94 | CY7: 43.87 | CZ7: 40.0
A8: 6 | B8: 0.25 | C8: 74.28 | D8: ='Cobb-Douglas DH'!$C$12+('Cobb-Douglas DH'!$D$12*'Oculto DH'!C8) -> 111.41 | E8: 118.8401639 | F8: 22.28 | G8: =$E$27*'Oculto DH'!B8 -> 29.71 | H8: 89.1301229 | I8: 0.6 | M8: 6 | N8: 0.25 | O8: 25.00 | P8: 37.50 | Q8: 54.00 | R8: 5.75 | S8: 13.50 | T8: 23.00 | U8: 0.5 | V8: 27.00 | W8: 51.08 | Y8: 6 | Z8: 0.25 | AA8: 0.75 | AB8: ='Neutrales DH'!$B$20*Z8 -> 25.00 | AC8: =('Neutrales DH'!$B$20*'Neutrales DH'!$C$7/'Neutrales DH'!$E$7)*AA8 -> 22.50 | AD8: 100.00 | AE8: 7.50 | AG8: 6 | AH8: 0.25 | AI8: 0.75 | AJ8: =('Males DH'!$B$20)*'Oculto DH'!AH8 -> 25.00 | AK8: =AI8*('Males DH'!$C$7*'Males DH'!$B$20/'Males DH'!$E$7) -> 37.50 | AL8: =$AJ$23+(('Males DH'!$C$20/'Males DH'!$E$20)*'Oculto DH'!AJ8) -> 125.00 | AM8: 5.00 | AO8: 6 | AP8: 0.25 | AQ8: 0.75 | AR8: 37.50 | AS8: 112.50 | AT8: 50.00 | AU8: 112.50 | AV8: 75.00 | AW8: 100.00 | AX8: 50.00 | AY8: 25.00 | AZ8: 12.50 | BA8: 100.00 | BC8: 6 | BD8: 0.25 | BE8: 0.75 | BF8: 25.00 | BG8: 37.50 | BH8: 25.00 | BI8: 75.00 | BK8: 6 | BL8: 0.25 | BM8: 10.99 | BN8: 19.77 | BO8: 21.97145176 | BP8: 3.30 | BQ8: 5.49 | BR8: 13.18287105 | BS8: 0.6 | BT8: 10.99 | BU8: 26.37 | BW8: 0.5 | BX8: 6 | BY8: 0.75 | BZ8: 0.25 | CA8: 24.99 | CB8: 7.50 | CC8: 10.0 | CD8: 2.25 | CE8: 2.50 | CF8: 9.0 | CG8: 4.50 | CH8: 9.80 | CK8: 0.5 | CL8: 6 | CM8: 0.75 | CN8: 0.25 | CO8: 54.84 | CP8: 82.26 | CQ8: 79.7 | CR8: 17.46 | CS8: 19.92 | CT8: 69.8 | CU8: =CO8 -> 54.84 | CV8: =($CK$46^(1/$CN$46)/((CU8-$CM$48)^($CL$46/$CN$46)))+$CO$48 -> 91.11 | CW8: 20.0 | CX8: 27.42 | CY8: 54.84 | CZ8: 40.0
A9: 7 | B9: 0.30 | C9: 89.13 | D9: ='Cobb-Douglas DH'!$C$12+('Cobb-Douglas DH'!$D$12*'Oculto DH'!C9) -> 103.99 | E9: 118.8401639 | F9: 26.74 | G9: =$E$27*'Oculto DH'!B9 -> 35.65 | H9: 89.1301229 | I9: 0.68 | M9: 7 | N9: 0.30 | O9: 30.00 | P9: 35.00 | Q9: 54.00 | R9: 6.90 | S9: 16.20 | T9: 23.00 | U9: 0.6 | V9: 32.40 | W9: 41.47 | Y9: 7 | Z9: 0.30 | AA9: 0.70 | AB9: ='Neutrales DH'!$B$20*Z9 -> 30.00 | AC9: =('Neutrales DH'!$B$20*'Neutrales DH'!$C$7/'Neutrales DH'!$E$7)*AA9 -> 21.00 | AD9: 100.00 | AE9: 9.00 | AG9: 7 | AH9: 0.30 | AI9: 0.70 | AJ9: =('Males DH'!$B$20)*'Oculto DH'!AH9 -> 30.00 | AK9: =AI9*('Males DH'!$C$7*'Males DH'!$B$20/'Males DH'!$E$7) -> 35.00 | AL9: =$AJ$23+(('Males DH'!$C$20/'Males DH'!$E$20)*'Oculto DH'!AJ9) -> 130.00 | AM9: 6.00 | AO9: 7 | AP9: 0.30 | AQ9: 0.70 | AR9: 45.00 | AS9: 105.00 | AT9: 50.00 | AU9: 115.00 | AV9: 80.00 | AW9: 100.00 | AX9: 50.00 | AY9: 30.00 | AZ9: 15.00 | BA9: 100.00 | BC9: 7 | BD9: 0.30 | BE9: 0.70 | BF9: 30.00 | BG9: 35.00 | BH9: 30.00 | BI9: 70.00 | BK9: 7 | BL9: 0.30 | BM9: 13.18 | BN9: 18.46 | BO9: 21.97145176 | BP9: 3.95 | BQ9: 6.59 | BR9: 13.18287105 | BS9: 0.68 | BT9: =BM9 -> 13.18 | BU9: 21.97 | BW9: 0.6 | BX9: 7 | BY9: 0.70 | BZ9: 0.30 | CA9: 29.99 | CB9: 7.00 | CC9: 10.0 | CD9: 2.70 | CE9: 3.00 | CF9: 9.0 | CG9: 5.40 | CH9: 9.61 | CK9: 0.6 | CL9: 7 | CM9: 0.70 | CN9: 0.30 | CO9: 65.81 | CP9: 76.78 | CQ9: 79.7 | CR9: 20.95 | CS9: 23.90 | CT9: 69.8 | CU9: 65.81 | CV9: 78.88 | CW9: 20.0 | CX9: 32.90 | CY9: 65.81 | CZ9: 40.0
A10: 8 | B10: 0.35 | C10: 103.99 | D10: ='Cobb-Douglas DH'!$C$12+('Cobb-Douglas DH'!$D$12*'Oculto DH'!C10) -> 96.56 | E10: 118.8401639 | F10: 31.20 | G10: =$E$27*'Oculto DH'!B10 -> 41.59 | H10: 89.1301229 | I10: 0.76 | J10: =$E$27*I10 -> 90.32 | K10: =($F$28/(J10^($E$26)))^(1/$F$26) -> 107.02 | M10: 8 | N10: 0.35 | O10: 35.00 | P10: 32.50 | Q10: 54.00 | R10: 8.05 | S10: 18.90 | T10: 23.00 | U10: 0.7 | V10: 37.80 | W10: 34.77 | Y10: 8 | Z10: 0.35 | AA10: 0.65 | AB10: ='Neutrales DH'!$B$20*Z10 -> 35.00 | AC10: =('Neutrales DH'!$B$20*'Neutrales DH'!$C$7/'Neutrales DH'!$E$7)*AA10 -> 19.50 | AD10: 100.00 | AE10: 10.50 | AG10: 8 | AH10: 0.35 | AI10: 0.65 | AJ10: =('Males DH'!$B$20)*'Oculto DH'!AH10 -> 35.00 | AK10: =AI10*('Males DH'!$C$7*'Males DH'!$B$20/'Males DH'!$E$7) -> 32.50 | AL10: =$AJ$23+(('Males DH'!$C$20/'Males DH'!$E$20)*'Oculto DH'!AJ10) -> 135.00 | AM10: 7.00 | AO10: 8 | AP10: 0.35 | AQ10: 0.65 | AR10: 52.50 | AS10: 97.50 | AT10: 50.00 | AU10: 117.50 | AV10: 85.00 | AW10: 100.00 | AX10: 50.00 | AY10: 35.00 | AZ10: 17.50 | BA10: 100.00 | BC10: 8 | BD10: 0.35 | BE10: 0.65 | BF10: 35.00 | BG10: 32.50 | BH10: 35.00 | BI10: 65.00 | BK10: 8 | BL10: 0.35 | BM10: 15.38 | BN10: 17.14 | BO10: 21.97145176 | BP10: 4.61 | BQ10: 7.69 | BR10: 13.18287105 | BS10: 0.76 | BT10: =BM10 -> 15.38 | BU10: 18.83 | BW10: 0.7 | BX10: 8 | BY10: 0.65 | BZ10: 0.35 | CA10: 34.99 | CB10: 6.50 | CC10: 10.0 | CD10: 3.15 | CE10: 3.50 | CF10: 9.0 | CG10: 6.30 | CH10: 9.46 | CK10: 0.7 | CL10: 8 | CM10: 0.65 | CN10: 0.35 | CO10: 76.78 | CP10: 71.29 | CQ10: 79.7 | CR10: 24.44 | CS10: 27.89 | CT10: 69.8 | CU10: =CO10 -> 76.78 | CV10: =($CK$46^(1/$CN$46)/((CU10-$CM$48)^($CL$46/$CN$46)))+$CO$48 -> 71.37 | CW10: 20.0 | CX10: 38.39 | CY10: 76.78 | CZ10: 40.0
A11: 9 | B11: 0.40 | C11: 118.84 | D11: ='Cobb-Douglas DH'!$C$12+('Cobb-Douglas DH'!$D$12*'Oculto DH'!C11) -> 89.13 | E11: 118.8401639 | F11: 35.65 | G11: =$E$27*'Oculto DH'!B11 -> 47.54 | H11: 89.1301229 | I11: 0.84 | J11: 99.83 | K11: 100.12 | M11: 9 | N11: 0.40 | O11: 40.00 | P11: 30.00 | Q11: 54.00 | R11: 9.20 | S11: 21.60 | T11: 23.00 | U11: 0.8 | V11: 43.20 | W11: 29.82 | Y11: 9 | Z11: 0.40 | AA11: 0.60 | AB11: ='Neutrales DH'!$B$20*Z11 -> 40.00 | AC11: =('Neutrales DH'!$B$20*'Neutrales DH'!$C$7/'Neutrales DH'!$E$7)*AA11 -> 18.00 | AD11: 100.00 | AE11: 12.00 | AG11: 9 | AH11: 0.40 | AI11: 0.60 | AJ11: =('Males DH'!$B$20)*'Oculto DH'!AH11 -> 40.00 | AK11: =AI11*('Males DH'!$C$7*'Males DH'!$B$20/'Males DH'!$E$7) -> 30.00 | AL11: =$AJ$23+(('Males DH'!$C$20/'Males DH'!$E$20)*'Oculto DH'!AJ11) -> 140.00 | AM11: 8.00 | AO11: 9 | AP11: 0.40 | AQ11: 0.60 | AR11: 60.00 | AS11: 90.00 | AT11: 50.00 | AU11: 120.00 | AV11: 90.00 | AW11: 100.00 | AX11: 50.00 | AY11: 40.00 | AZ11: 20.00 | BA11: 100.00 | BC11: 9 | BD11: 0.40 | BE11: 0.60 | BF11: 40.00 | BG11: 30.00 | BH11: 40.00 | BI11: 60.00 | BK11: 9 | BL11: 0.40 | BM11: 17.58 | BN11: 15.82 | BO11: 21.97145176 | BP11: 5.27 | BQ11: 8.79 | BR11: 13.18287105 | BS11: 0.84 | BT11: 17.58 | BU11: 16.48 | BW11: 0.8 | BX11: 9 | BY11: 0.60 | BZ11: 0.40 | CA11: 39.99 | CB11: 6.00 | CC11: 10.0 | CD11: 3.60 | CE11: 4.00 | CF11: 9.0 | CG11: 7.20 | CH11: 9.33 | CK11: 0.8 | CL11: 9 | CM11: 0.60 | CN11: 0.40 | CO11: 87.74 | CP11: 65.81 | CQ11: 79.7 | CR11: 27.94 | CS11: 31.87 | CT11: 69.8 | CU11: 87.74 | CV11: =($CK$46^(1/$CN$46)/((CU11-$CM$48)^($CL$46/$CN$46)))+$CO$48 -> 66.29 | CW11: 20.0 | CX11: 43.87 | CY11: 87.74 | CZ11: 40.0
A12: 10 | B12: 0.45 | C12: 133.70 | D12: ='Cobb-Douglas DH'!$C$12+('Cobb-Douglas DH'!$D$12*'Oculto DH'!C12) -> 81.70 | E12: 118.8401639 | F12: 40.11 | G12: =$E$27*'Oculto DH'!B12 -> 53.48 | H12: 89.1301229 | I12: 0.92 | J12: 109.33 | K12: 94.22 | M12: 10 | N12: 0.45 | O12: 45.00 | P12: 27.50 | Q12: 54.00 | R12: 10.35 | S12: 24.30 | T12: 23.00 | U12: 0.9 | V12: 48.60 | W12: 26.01 | Y12: 10 | Z12: 0.45 | AA12: 0.55 | AB12: ='Neutrales DH'!$B$20*Z12 -> 45.00 | AC12: =('Neutrales DH'!$B$20*'Neutrales DH'!$C$7/'Neutrales DH'!$E$7)*AA12 -> 16.50 | AD12: 100.00 | AE12: 13.50 | AG12: 10 | AH12: 0.45 | AI12: 0.55 | AJ12: =('Males DH'!$B$20)*'Oculto DH'!AH12 -> 45.00 | AK12: =AI12*('Males DH'!$C$7*'Males DH'!$B$20/'Males DH'!$E$7) -> 27.50 | AL12: =$AJ$23+(('Males DH'!$C$20/'Males DH'!$E$20)*'Oculto DH'!AJ12) -> 145.00 | AM12: 9.00 | AO12: 10 | AP12: 0.45 | AQ12: 0.55 | AR12: 67.50 | AS12: 82.50 | AT12: 50.00 | AU12: 122.50 | AV12: 95.00 | AW12: 100.00 | AX12: 50.00 | AY12: 45.00 | AZ12: 22.50 | BA12: 100.00 | BC12: 10 | BD12: 0.45 | BE12: 0.55 | BF12: 45.00 | BG12: 27.50 | BH12: 45.00 | BI12: 55.00 | BK12: 10 | BL12: 0.45 | BM12: 19.77 | BN12: 14.50 | BO12: 21.97145176 | BP12: 5.93 | BQ12: 9.89 | BR12: 13.18287105 | BS12: 0.92 | BT12: 19.77 | BU12: 14.65 | BW12: 0.9 | BX12: 10 | BY12: 0.55 | BZ12: 0.45 | CA12: 44.99 | CB12: 5.50 | CC12: 10.0 | CD12: 4.05 | CE12: 4.50 | CF12: 9.0 | CG12: 8.10 | CH12: 9.21 | CK12: 0.9 | CL12: 10 | CM12: 0.55 | CN12: 0.45 | CO12: 98.71 | CP12: 60.32 | CQ12: 79.7 | CR12: 31.43 | CS12: 35.86 | CT12: 69.8 | CU12: 98.71 | CV12: 62.62 | CW12: 20.0 | CX12: 49.36 | CY12: 98.71 | CZ12: 40.0
A13: 11 | B13: 0.50 | C13: 148.55 | D13: ='Cobb-Douglas DH'!$C$12+('Cobb-Douglas DH'!$D$12*'Oculto DH'!C13) -> 74.28 | E13: 118.8401639 | F13: 44.57 | G13: =$E$27*'Oculto DH'!B13 -> 59.42 | H13: 89.1301229 | I13: 1 | J13: =$E$27*I13 -> 118.84 | K13: 89.13 | M13: 11 | N13: 0.50 | O13: 50.00 | P13: 25.00 | Q13: 54.00 | R13: 11.50 | S13: 27.00 | T13: 23.00 | U13: 1 | V13: =P28 -> 54.00 | W13: =($Q$26-($Q$30*V13)-($Q$28*$Q$30))/(V13+$Q$28) -> 23.00 | Y13: 11 | Z13: 0.50 | AA13: 0.50 | AB13: ='Neutrales DH'!$B$20*Z13 -> 50.00 | AC13: =('Neutrales DH'!$B$20*'Neutrales DH'!$C$7/'Neutrales DH'!$E$7)*AA13 -> 15.00 | AD13: 100.00 | AE13: 15.00 | AG13: 11 | AH13: 0.50 | AI13: 0.50 | AJ13: =('Males DH'!$B$20)*'Oculto DH'!AH13 -> 50.00 | AK13: =AI13*('Males DH'!$C$7*'Males DH'!$B$20/'Males DH'!$E$7) -> 25.00 | AL13: =$AJ$23+(('Males DH'!$C$20/'Males DH'!$E$20)*'Oculto DH'!AJ13) -> 150.00 | AM13: 10.00 | AO13: 11 | AP13: 0.50 | AQ13: 0.50 | AR13: 75.00 | AS13: 75.00 | AT13: =MIN($AR$28:$AR$29) -> 50.00 | AU13: 125.00 | AV13: 100.00 | AW13: 100.00 | AX13: 50.00 | AY13: 50.00 | AZ13: 25.00 | BA13: 100.00 | BC13: 11 | BD13: 0.50 | BE13: 0.50 | BF13: 50.00 | BG13: 25.00 | BH13: 50.00 | BI13: 50.00 | BK13: 11 | BL13: 0.50 | BM13: 21.97 | BN13: 13.18 | BO13: 21.97145176 | BP13: 6.59 | BQ13: 10.99 | BR13: 13.18287105 | BS13: 1 | BT13: 21.97 | BU13: 13.18 | BW13: 1 | BX13: 11 | BY13: 0.50 | BZ13: 0.50 | CA13: 49.99 | CB13: 5.00 | CC13: 10.0 | CD13: 4.50 | CE13: 5.00 | CF13: 9.0 | CG13: =$CF$26*BW13 -> 9.00 | CH13: =$CD$26-(LN(CG13)) -> 9.10 | CK13: 1 | CL13: 11 | CM13: 0.50 | CN13: 0.50 | CO13: 109.68 | CP13: 54.84 | CQ13: 79.7 | CR13: 34.92 | CS13: 39.84 | CT13: 69.8 | CU13: =CO13 -> 109.68 | CV13: 59.86 | CW13: 20.0 | CX13: 54.84 | CY13: 109.68 | CZ13: 40.0
A14: 12 | B14: 0.55 | C14: 163.41 | D14: ='Cobb-Douglas DH'!$C$12+('Cobb-Douglas DH'!$D$12*'Oculto DH'!C14) -> 66.85 | E14: 118.8401639 | F14: 49.02 | G14: =$E$27*'Oculto DH'!B14 -> 65.36 | H14: 89.1301229 | I14: 1.08 | J14: =$E$27*I14 -> 128.35 | K14: 84.67 | M14: 12 | N14: 0.55 | O14: 55.00 | P14: 22.50 | Q14: 54.00 | R14: 12.65 | S14: 29.70 | T14: 23.00 | U14: =U13+$U$25 -> 1.1 | V14: =$V$13*U14 -> 59.40 | W14: =($Q$26-($Q$30*V14)-($Q$28*$Q$30))/(V14+$Q$28) -> 20.55 | Y14: 12 | Z14: 0.55 | AA14: 0.45 | AB14: ='Neutrales DH'!$B$20*Z14 -> 55.00 | AC14: =('Neutrales DH'!$B$20*'Neutrales DH'!$C$7/'Neutrales DH'!$E$7)*AA14 -> 13.50 | AD14: 100.00 | AE14: 16.50 | AG14: 12 | AH14: 0.55 | AI14: 0.45 | AJ14: =('Males DH'!$B$20)*'Oculto DH'!AH14 -> 55.00 | AK14: =AI14*('Males DH'!$C$7*'Males DH'!$B$20/'Males DH'!$E$7) -> 22.50 | AL14: =$AJ$23+(('Males DH'!$C$20/'Males DH'!$E$20)*'Oculto DH'!AJ14) -> 155.00 | AM14: 11.00 | AO14: 12 | AP14: 0.55 | AQ14: 0.45 | AR14: 82.50 | AS14: 67.50 | AT14: =MIN($AR$28:$AR$29) -> 50.00 | AU14: 127.50 | AV14: 105.00 | AW14: 100.00 | AX14: 50.00 | AY14: 55.00 | AZ14: 27.50 | BA14: 100.00 | BC14: 12 | BD14: 0.55 | BE14: 0.45 | BF14: 55.00 | BG14: 22.50 | BH14: 55.00 | BI14: 45.00 | BK14: 12 | BL14: 0.55 | BM14: 24.17 | BN14: 11.86 | BO14: 21.97145176 | BP14: 7.25 | BQ14: 12.08 | BR14: 13.18287105 | BS14: 1.08 | BT14: 24.17 | BU14: 11.98 | BW14: 1.1 | BX14: 12 | BY14: 0.45 | BZ14: 0.55 | CA14: 54.99 | CB14: 4.50 | CC14: 10.0 | CD14: 4.95 | CE14: 5.50 | CF14: 9.0 | CG14: =$CF$26*BW14 -> 9.90 | CH14: =$CD$26-(LN(CG14)) -> 9.01 | CK14: 1.1 | CL14: 12 | CM14: 0.45 | CN14: 0.55 | CO14: 120.65 | CP14: 49.36 | CQ14: 79.7 | CR14: 38.41 | CS14: 43.82 | CT14: 69.8 | CU14: 120.65 | CV14: 57.69 | CW14: 20.0 | CX14: 60.32 | CY14: 120.65 | CZ14: 40.0
A15: 13 | B15: 0.60 | C15: 178.26 | D15: ='Cobb-Douglas DH'!$C$12+('Cobb-Douglas DH'!$D$12*'Oculto DH'!C15) -> 59.42 | E15: 118.8401639 | F15: 53.48 | G15: =$E$27*'Oculto DH'!B15 -> 71.30 | H15: 89.1301229 | I15: 1.16 | J15: 137.85 | K15: 80.73 | M15: 13 | N15: 0.60 | O15: 60.00 | P15: 20.00 | Q15: 54.00 | R15: 13.80 | S15: 32.40 | T15: 23.00 | U15: =U14+$U$25 -> 1.2 | V15: =$V$13*U15 -> 64.80 | W15: 18.53 | Y15: 13 | Z15: 0.60 | AA15: 0.40 | AB15: ='Neutrales DH'!$B$20*Z15 -> 60.00 | AC15: =('Neutrales DH'!$B$20*'Neutrales DH'!$C$7/'Neutrales DH'!$E$7)*AA15 -> 12.00 | AD15: 100.00 | AE15: 18.00 | AG15: 13 | AH15: 0.60 | AI15: 0.40 | AJ15: =('Males DH'!$B$20)*'Oculto DH'!AH15 -> 60.00 | AK15: =AI15*('Males DH'!$C$7*'Males DH'!$B$20/'Males DH'!$E$7) -> 20.00 | AL15: =$AJ$23+(('Males DH'!$C$20/'Males DH'!$E$20)*'Oculto DH'!AJ15) -> 160.00 | AM15: 12.00 | AO15: 13 | AP15: 0.60 | AQ15: 0.40 | AR15: 90.00 | AS15: 60.00 | AT15: 50.00 | AU15: 130.00 | AV15: 110.00 | AW15: 100.00 | AX15: 50.00 | AY15: 60.00 | AZ15: 30.00 | BA15: 100.00 | BC15: 13 | BD15: 0.60 | BE15: 0.40 | BF15: 60.00 | BG15: 20.00 | BH15: 60.00 | BI15: 40.00 | BK15: 13 | BL15: 0.60 | BM15: 26.37 | BN15: 10.55 | BO15: 21.97145176 | BP15: 7.91 | BQ15: 13.18 | BR15: 13.18287105 | BS15: 1.16 | BT15: 26.37 | BU15: 10.99 | BW15: 1.2 | BX15: 13 | BY15: 0.40 | BZ15: 0.60 | CA15: 59.98 | CB15: 4.00 | CC15: 10.0 | CD15: 5.40 | CE15: 6.00 | CF15: 9.0 | CG15: 10.80 | CH15: 8.92 | CK15: 1.2 | CL15: 13 | CM15: 0.40 | CN15: 0.60 | CO15: 131.62 | CP15: 43.87 | CQ15: 79.7 | CR15: 41.90 | CS15: 47.81 | CT15: 69.8 | CU15: 131.62 | CV15: 55.96 | CW15: 20.0 | CX15: 65.81 | CY15: 131.62 | CZ15: 40.0
A16: 14 | B16: 0.65 | C16: 193.12 | D16: ='Cobb-Douglas DH'!$C$12+('Cobb-Douglas DH'!$D$12*'Oculto DH'!C16) -> 51.99 | E16: 118.8401639 | F16: 57.93 | G16: =$E$27*'Oculto DH'!B16 -> 77.25 | H16: 89.1301229 | I16: 1.24 | J16: 147.36 | K16: 77.22 | M16: 14 | N16: 0.65 | O16: 65.00 | P16: 17.50 | Q16: 54.00 | R16: 14.95 | S16: 35.10 | T16: 23.00 | U16: 1.3 | V16: 70.20 | W16: 16.82 | Y16: 14 | Z16: 0.65 | AA16: 0.35 | AB16: ='Neutrales DH'!$B$20*Z16 -> 65.00 | AC16: =('Neutrales DH'!$B$20*'Neutrales DH'!$C$7/'Neutrales DH'!$E$7)*AA16 -> 10.50 | AD16: 100.00 | AE16: 19.50 | AG16: 14 | AH16: 0.65 | AI16: 0.35 | AJ16: =('Males DH'!$B$20)*'Oculto DH'!AH16 -> 65.00 | AK16: =AI16*('Males DH'!$C$7*'Males DH'!$B$20/'Males DH'!$E$7) -> 17.50 | AL16: =$AJ$23+(('Males DH'!$C$20/'Males DH'!$E$20)*'Oculto DH'!AJ16) -> 165.00 | AM16: 13.00 | AO16: 14 | AP16: 0.65 | AQ16: 0.35 | AR16: 97.50 | AS16: 52.50 | AT16: 50.00 | AU16: 132.50 | AV16: 115.00 | AW16: 100.00 | AX16: 50.00 | AY16: 65.00 | AZ16: 32.50 | BA16: 100.00 | BC16: 14 | BD16: 0.65 | BE16: 0.35 | BF16: 65.00 | BG16: 17.50 | BH16: 65.00 | BI16: 35.00 | BK16: 14 | BL16: 0.65 | BM16: 28.56 | BN16: 9.23 | BO16: 21.97145176 | BP16: 8.57 | BQ16: 14.28 | BR16: 13.18287105 | BS16: 1.24 | BT16: 28.56 | BU16: 10.14 | BW16: 1.3 | BX16: 14 | BY16: 0.35 | BZ16: 0.65 | CA16: 64.98 | CB16: 3.50 | CC16: 10.0 | CD16: 5.85 | CE16: 6.50 | CF16: 9.0 | CG16: 11.70 | CH16: 8.84 | CK16: 1.3 | CL16: 14 | CM16: 0.35 | CN16: 0.65 | CO16: 142.58 | CP16: 38.39 | CQ16: 79.7 | CR16: 45.40 | CS16: 51.79 | CT16: 69.8 | CU16: 142.58 | CV16: 54.53 | CW16: 20.0 | CX16: 71.29 | CY16: 142.58 | CZ16: 40.0
A17: 15 | B17: 0.70 | C17: 207.97 | D17: ='Cobb-Douglas DH'!$C$12+('Cobb-Douglas DH'!$D$12*'Oculto DH'!C17) -> 44.57 | E17: 118.8401639 | F17: 62.39 | G17: =$E$27*'Oculto DH'!B17 -> 83.19 | H17: 89.1301229 | I17: 1.32 | J17: 156.87 | K17: 74.07 | M17: 15 | N17: 0.70 | O17: 70.00 | P17: 15.00 | Q17: 54.00 | R17: 16.10 | S17: 37.80 | T17: 23.00 | U17: 1.4 | V17: 75.60 | W17: 15.37 | Y17: 15 | Z17: 0.70 | AA17: 0.30 | AB17: ='Neutrales DH'!$B$20*Z17 -> 70.00 | AC17: =('Neutrales DH'!$B$20*'Neutrales DH'!$C$7/'Neutrales DH'!$E$7)*AA17 -> 9.00 | AD17: 100.00 | AE17: 21.00 | AG17: 15 | AH17: 0.70 | AI17: 0.30 | AJ17: =('Males DH'!$B$20)*'Oculto DH'!AH17 -> 70.00 | AK17: =AI17*('Males DH'!$C$7*'Males DH'!$B$20/'Males DH'!$E$7) -> 15.00 | AL17: =$AJ$23+(('Males DH'!$C$20/'Males DH'!$E$20)*'Oculto DH'!AJ17) -> 170.00 | AM17: 14.00 | AO17: 15 | AP17: 0.70 | AQ17: 0.30 | AR17: 105.00 | AS17: 45.00 | AT17: 50.00 | AU17: 135.00 | AV17: 120.00 | AW17: 100.00 | AX17: 50.00 | AY17: 70.00 | AZ17: 35.00 | BA17: 100.00 | BC17: 15 | BD17: 0.70 | BE17: 0.30 | BF17: 70.00 | BG17: 15.00 | BH17: 70.00 | BI17: 30.00 | BK17: 15 | BL17: 0.70 | BM17: 30.76 | BN17: 7.91 | BO17: 21.97145176 | BP17: 9.23 | BQ17: 15.38 | BR17: 13.18287105 | BS17: 1.32 | BT17: 30.76 | BU17: 9.42 | BW17: 1.4 | BX17: 15 | BY17: 0.30 | BZ17: 0.70 | CA17: 69.98 | CB17: 3.00 | CC17: 10.0 | CD17: 6.30 | CE17: 7.00 | CF17: 9.0 | CG17: 12.60 | CH17: 8.77 | CK17: 1.4 | CL17: 15 | CM17: 0.30 | CN17: 0.70 | CO17: 153.55 | CP17: 32.90 | CQ17: 79.7 | CR17: 48.89 | CS17: 55.78 | CT17: 69.8 | CU17: 153.55 | CV17: 53.33 | CW17: 20.0 | CX17: 76.78 | CY17: 153.55 | CZ17: 40.0
A18: 16 | B18: 0.75 | C18: 222.83 | D18: ='Cobb-Douglas DH'!$C$12+('Cobb-Douglas DH'!$D$12*'Oculto DH'!C18) -> 37.14 | E18: 118.8401639 | F18: 66.85 | G18: =$E$27*'Oculto DH'!B18 -> 89.13 | H18: 89.1301229 | I18: 1.4 | J18: 166.38 | K18: 71.22 | M18: 16 | N18: 0.75 | O18: 75.00 | P18: 12.50 | Q18: 54.00 | R18: 17.25 | S18: 40.50 | T18: 23.00 | U18: 1.5 | V18: 81.00 | W18: 14.11 | Y18: 16 | Z18: 0.75 | AA18: 0.25 | AB18: ='Neutrales DH'!$B$20*Z18 -> 75.00 | AC18: =('Neutrales DH'!$B$20*'Neutrales DH'!$C$7/'Neutrales DH'!$E$7)*AA18 -> 7.50 | AD18: 100.00 | AE18: 22.50 | AG18: 16 | AH18: 0.75 | AI18: 0.25 | AJ18: =('Males DH'!$B$20)*'Oculto DH'!AH18 -> 75.00 | AK18: =AI18*('Males DH'!$C$7*'Males DH'!$B$20/'Males DH'!$E$7) -> 12.50 | AL18: =$AJ$23+(('Males DH'!$C$20/'Males DH'!$E$20)*'Oculto DH'!AJ18) -> 175.00 | AM18: 15.00 | AO18: 16 | AP18: 0.75 | AQ18: 0.25 | AR18: 112.50 | AS18: 37.50 | AT18: 50.00 | AU18: 137.50 | AV18: 125.00 | AW18: 100.00 | AX18: 50.00 | AY18: 75.00 | AZ18: 37.50 | BA18: 100.00 | BC18: 16 | BD18: 0.75 | BE18: 0.25 | BF18: 75.00 | BG18: 12.50 | BH18: 75.00 | BI18: 25.00 | BK18: 16 | BL18: 0.75 | BM18: 32.96 | BN18: 6.59 | BO18: 21.97145176 | BP18: 9.89 | BQ18: 16.48 | BR18: 13.18287105 | BS18: 1.4 | BT18: 32.96 | BU18: 8.79 | BW18: 1.5 | BX18: 16 | BY18: 0.25 | BZ18: 0.75 | CA18: 74.98 | CB18: 2.50 | CC18: 10.0 | CD18: 6.75 | CE18: 7.50 | CF18: 9.0 | CG18: 13.50 | CH18: 8.70 | CK18: 1.5 | CL18: 16 | CM18: 0.25 | CN18: 0.75 | CO18: 164.52 | CP18: 27.42 | CQ18: 79.7 | CR18: 52.38 | CS18: 59.76 | CT18: 69.8 | CU18: 164.52 | CV18: 52.32 | CW18: 20.0 | CX18: 82.26 | CY18: 164.52 | CZ18: 40.0
A19: 17 | B19: 0.80 | C19: 237.68 | D19: ='Cobb-Douglas DH'!$C$12+('Cobb-Douglas DH'!$D$12*'Oculto DH'!C19) -> 29.71 | E19: 118.8401639 | F19: 71.30 | G19: =$E$27*'Oculto DH'!B19 -> 95.07 | H19: 89.1301229 | I19: 1.48 | J19: 175.88 | K19: 68.63 | M19: 17 | N19: 0.80 | O19: 80.00 | P19: 10.00 | Q19: 54.00 | R19: 18.40 | S19: 43.20 | T19: 23.00 | U19: 1.6 | V19: 86.40 | W19: 13.02 | Y19: 17 | Z19: 0.80 | AA19: 0.20 | AB19: ='Neutrales DH'!$B$20*Z19 -> 80.00 | AC19: =('Neutrales DH'!$B$20*'Neutrales DH'!$C$7/'Neutrales DH'!$E$7)*AA19 -> 6.00 | AD19: 100.00 | AE19: 24.00 | AG19: 17 | AH19: 0.80 | AI19: 0.20 | AJ19: =('Males DH'!$B$20)*'Oculto DH'!AH19 -> 80.00 | AK19: =AI19*('Males DH'!$C$7*'Males DH'!$B$20/'Males DH'!$E$7) -> 10.00 | AL19: =$AJ$23+(('Males DH'!$C$20/'Males DH'!$E$20)*'Oculto DH'!AJ19) -> 180.00 | AM19: 16.00 | AO19: 17 | AP19: 0.80 | AQ19: 0.20 | AR19: 120.00 | AS19: 30.00 | AT19: 50.00 | AU19: 140.00 | AV19: 130.00 | AW19: 100.00 | AX19: 50.00 | AY19: 80.00 | AZ19: 40.00 | BA19: 100.00 | BC19: 17 | BD19: 0.80 | BE19: 0.20 | BF19: 80.00 | BG19: 10.00 | BH19: 80.00 | BI19: 20.00 | BK19: 17 | BL19: 0.80 | BM19: 35.15 | BN19: 5.27 | BO19: 21.97145176 | BP19: 10.55 | BQ19: 17.58 | BR19: 13.18287105 | BS19: 1.48 | BT19: 35.15 | BU19: 8.24 | BW19: 1.6 | BX19: 17 | BY19: 0.20 | BZ19: 0.80 | CA19: 79.98 | CB19: 2.00 | CC19: 10.0 | CD19: 7.20 | CE19: 8.00 | CF19: 9.0 | CG19: 14.40 | CH19: 8.63 | CK19: 1.6 | CL19: 17 | CM19: 0.20 | CN19: 0.80 | CO19: 175.49 | CP19: 21.94 | CQ19: 79.7 | CR19: 55.87 | CS19: 63.74 | CT19: 69.8 | CU19: 175.49 | CV19: 51.45 | CW19: 20.0 | CX19: 87.74 | CY19: 175.49 | CZ19: 40.0
A20: 18 | B20: 0.85 | C20: 252.54 | D20: ='Cobb-Douglas DH'!$C$12+('Cobb-Douglas DH'!$D$12*'Oculto DH'!C20) -> 22.28 | E20: 118.8401639 | F20: 75.76 | G20: =$E$27*'Oculto DH'!B20 -> 101.01 | H20: 89.1301229 | I20: 1.56 | J20: 185.39 | K20: 66.26 | M20: 18 | N20: 0.85 | O20: 85.00 | P20: 7.50 | Q20: 54.00 | R20: 19.55 | S20: 45.90 | T20: 23.00 | U20: 1.7 | V20: 91.80 | W20: 12.06 | Y20: 18 | Z20: 0.85 | AA20: 0.15 | AB20: ='Neutrales DH'!$B$20*Z20 -> 85.00 | AC20: =('Neutrales DH'!$B$20*'Neutrales DH'!$C$7/'Neutrales DH'!$E$7)*AA20 -> 4.50 | AD20: 100.00 | AE20: 25.50 | AG20: 18 | AH20: 0.85 | AI20: 0.15 | AJ20: =('Males DH'!$B$20)*'Oculto DH'!AH20 -> 85.00 | AK20: =AI20*('Males DH'!$C$7*'Males DH'!$B$20/'Males DH'!$E$7) -> 7.50 | AL20: =$AJ$23+(('Males DH'!$C$20/'Males DH'!$E$20)*'Oculto DH'!AJ20) -> 185.00 | AM20: 17.00 | AO20: 18 | AP20: 0.85 | AQ20: 0.15 | AR20: 127.50 | AS20: 22.50 | AT20: 50.00 | AU20: 142.50 | AV20: 135.00 | AW20: 100.00 | AX20: 50.00 | AY20: 85.00 | AZ20: 42.50 | BA20: 100.00 | BC20: 18 | BD20: 0.85 | BE20: 0.15 | BF20: 85.00 | BG20: 7.50 | BH20: 85.00 | BI20: 15.00 | BK20: 18 | BL20: 0.85 | BM20: 37.35 | BN20: 3.95 | BO20: 21.97145176 | BP20: 11.21 | BQ20: 18.68 | BR20: 13.18287105 | BS20: 1.56 | BT20: 37.35 | BU20: 7.75 | BW20: 1.7 | BX20: 18 | BY20: 0.15 | BZ20: 0.85 | CA20: 84.98 | CB20: 1.50 | CC20: 10.0 | CD20: 7.65 | CE20: 8.50 | CF20: 9.0 | CG20: 15.30 | CH20: 8.57 | CK20: 1.7 | CL20: 18 | CM20: 0.15 | CN20: 0.85 | CO20: 186.46 | CP20: 16.45 | CQ20: 79.7 | CR20: 59.36 | CS20: 67.73 | CT20: 69.8 | CU20: 186.46 | CV20: 50.70 | CW20: 20.0 | CX20: 93.23 | CY20: 186.46 | CZ20: 40.0
A21: 19 | B21: 0.90 | C21: 267.39 | D21: ='Cobb-Douglas DH'!$C$12+('Cobb-Douglas DH'!$D$12*'Oculto DH'!C21) -> 14.86 | E21: 118.8401639 | F21: 80.22 | G21: =$E$27*'Oculto DH'!B21 -> 106.96 | H21: 89.1301229 | I21: 1.64 | J21: 194.90 | K21: 64.09 | M21: 19 | N21: 0.90 | O21: 90.00 | P21: 5.00 | Q21: 54.00 | R21: 20.70 | S21: 48.60 | T21: 23.00 | U21: 1.8 | V21: 97.20 | W21: 11.20 | Y21: 19 | Z21: 0.90 | AA21: 0.10 | AB21: ='Neutrales DH'!$B$20*Z21 -> 90.00 | AC21: =('Neutrales DH'!$B$20*'Neutrales DH'!$C$7/'Neutrales DH'!$E$7)*AA21 -> 3.00 | AD21: 100.00 | AE21: 27.00 | AG21: 19 | AH21: 0.90 | AI21: 0.10 | AJ21: =('Males DH'!$B$20)*'Oculto DH'!AH21 -> 90.00 | AK21: =AI21*('Males DH'!$C$7*'Males DH'!$B$20/'Males DH'!$E$7) -> 5.00 | AL21: =$AJ$23+(('Males DH'!$C$20/'Males DH'!$E$20)*'Oculto DH'!AJ21) -> 190.00 | AM21: 18.00 | AO21: 19 | AP21: 0.90 | AQ21: 0.10 | AR21: 135.00 | AS21: 15.00 | AT21: 50.00 | AU21: 145.00 | AV21: 140.00 | AW21: 100.00 | AX21: 50.00 | AY21: 90.00 | AZ21: 45.00 | BA21: 100.00 | BC21: 19 | BD21: 0.90 | BE21: 0.10 | BF21: 90.00 | BG21: 5.00 | BH21: 90.00 | BI21: 10.00 | BK21: 19 | BL21: 0.90 | BM21: 39.55 | BN21: 2.64 | BO21: 21.97145176 | BP21: 11.86 | BQ21: 19.77 | BR21: 13.18287105 | BS21: 1.64 | BT21: 39.55 | BU21: 7.32 | BW21: 1.8 | BX21: 19 | BY21: 0.10 | BZ21: 0.90 | CA21: 89.98 | CB21: 1.00 | CC21: 10.0 | CD21: 8.10 | CE21: 9.00 | CF21: 9.0 | CG21: 16.20 | CH21: 8.52 | CK21: 1.8 | CL21: 19 | CM21: 0.10 | CN21: 0.90 | CO21: 197.42 | CP21: 10.97 | CQ21: 79.7 | CR21: 62.86 | CS21: 71.71 | CT21: 69.8 | CU21: 197.42 | CV21: 50.04 | CW21: 20.0 | CX21: 98.71 | CY21: 197.42 | CZ21: 40.0
A22: 20 | B22: 0.95 | C22: 282.25 | D22: ='Cobb-Douglas DH'!$C$12+('Cobb-Douglas DH'!$D$12*'Oculto DH'!C22) -> 7.43 | E22: 118.8401639 | F22: 84.67 | G22: =$E$27*'Oculto DH'!B22 -> 112.90 | H22: 89.1301229 | I22: 1.72 | J22: 204.41 | K22: 62.09 | M22: 20 | N22: 0.95 | O22: 95.00 | P22: 2.50 | Q22: 54.00 | R22: 21.85 | S22: 51.30 | T22: 23.00 | U22: 1.9 | V22: 102.60 | W22: 10.44 | Y22: 20 | Z22: 0.95 | AA22: 0.05 | AB22: ='Neutrales DH'!$B$20*Z22 -> 95.00 | AC22: =('Neutrales DH'!$B$20*'Neutrales DH'!$C$7/'Neutrales DH'!$E$7)*AA22 -> 1.50 | AD22: 100.00 | AE22: 28.50 | AG22: 20 | AH22: 0.95 | AI22: 0.05 | AJ22: =('Males DH'!$B$20)*'Oculto DH'!AH22 -> 95.00 | AK22: =AI22*('Males DH'!$C$7*'Males DH'!$B$20/'Males DH'!$E$7) -> 2.50 | AL22: =$AJ$23+(('Males DH'!$C$20/'Males DH'!$E$20)*'Oculto DH'!AJ22) -> 195.00 | AM22: 19.00 | AO22: 20 | AP22: 0.95 | AQ22: 0.05 | AR22: 142.50 | AS22: 7.50 | AT22: 50.00 | AU22: 147.50 | AV22: 145.00 | AW22: 100.00 | AX22: 50.00 | AY22: 95.00 | AZ22: 47.50 | BA22: 100.00 | BC22: 20 | BD22: 0.95 | BE22: 0.05 | BF22: 95.00 | BG22: 2.50 | BH22: 95.00 | BI22: 5.00 | BK22: 20 | BL22: 0.95 | BM22: 41.75 | BN22: 1.32 | BO22: 21.97145176 | BP22: 12.52 | BQ22: 20.87 | BR22: 13.18287105 | BS22: 1.72 | BT22: 41.75 | BU22: 6.94 | BW22: 1.9 | BX22: 20 | BY22: 0.05 | BZ22: 0.95 | CA22: 94.98 | CB22: 0.50 | CC22: 10.0 | CD22: 8.55 | CE22: 9.50 | CF22: 9.0 | CG22: 17.10 | CH22: 8.46 | CK22: 1.9 | CL22: 20 | CM22: 0.05 | CN22: 0.95 | CO22: 208.39 | CP22: 5.48 | CQ22: 79.7 | CR22: 66.35 | CS22: 75.70 | CT22: 69.8 | CU22: 208.39 | CV22: 49.45 | CW22: 20.0 | CX22: 104.20 | CY22: 208.39 | CZ22: 40.0
A23: 21 | B23: 1.00 | C23: 297.10 | D23: ='Cobb-Douglas DH'!$C$12+('Cobb-Douglas DH'!$D$12*'Oculto DH'!C23) -> 0 | E23: 118.8401639 | F23: =$F$27*B23 -> 89.13 | G23: =$E$27*'Oculto DH'!B23 -> 118.84 | H23: 89.1301229 | I23: 1.8 | J23: 213.91 | K23: 60.23 | M23: 21 | N23: 1.00 | O23: 100.00 | P23: 0 | Q23: 54.00 | R23: 23.00 | S23: 54.00 | T23: 23.00 | U23: 2 | V23: 108.00 | W23: 9.75 | Y23: 21 | Z23: 1.00 | AA23: 0 | AB23: ='Neutrales DH'!$B$20*Z23 -> 100.00 | AC23: =('Neutrales DH'!$B$20*'Neutrales DH'!$C$7/'Neutrales DH'!$E$7)*AA23 -> 0 | AD23: 100.00 | AE23: 30.00 | AG23: 21 | AH23: 1.00 | AI23: 0 | AJ23: =('Males DH'!$B$20)*'Oculto DH'!AH23 -> 100.00 | AK23: =AI23*('Males DH'!$C$7*'Males DH'!$B$20/'Males DH'!$E$7) -> 0 | AL23: =$AJ$23+(('Males DH'!$C$20/'Males DH'!$E$20)*'Oculto DH'!AJ23) -> 200.00 | AM23: 20.00 | AO23: 21 | AP23: 1.00 | AQ23: 0 | AR23: 150.00 | AS23: 0 | AT23: 50.00 | AU23: 150.00 | AV23: 150.00 | AW23: 100.00 | AX23: 50.00 | AY23: 100.00 | AZ23: 50.00 | BA23: 100.00 | BC23: 21 | BD23: 1.00 | BE23: 0 | BF23: 100.00 | BG23: 0 | BH23: 100.00 | BI23: 0 | BK23: 21 | BL23: 1.00 | BM23: 43.94 | BN23: 0 | BO23: 21.97145176 | BP23: 13.18 | BQ23: 21.97 | BR23: 13.18287105 | BS23: 1.8 | BT23: 43.94 | BU23: 6.59 | BW23: 2 | BX23: 21 | BY23: 0 | BZ23: 1.00 | CA23: 99.97 | CB23: 0 | CC23: 10.0 | CD23: 9.00 | CE23: 10.00 | CF23: 9.0 | CG23: 17.99 | CH23: =$CD$26-(LN(CG23)) -> 8.41 | CK23: 2 | CL23: 21 | CM23: 0 | CN23: 1.00 | CO23: 219.36 | CP23: 0 | CQ23: 79.7 | CR23: 69.84 | CS23: 79.68 | CT23: 69.8 | CU23: 219.36 | CV23: 48.93 | CW23: 20.0 | CX23: 109.68 | CY23: 219.36 | CZ23: 40.0
E25: x1 | F25: x2 | O25: m | P25: ='Regulares DH'!$B$7 -> 300.00 | Q25: k | U25: =1/10 -> 0.1 | AQ25: m | AR25: =AR26*AR28+AR27*AR29 -> 150 | AS25: a | AT25: 1.0 | BD25: m | BE25: =MIN(BE29,(BE30*BE33))*BE28 -> 300 | BF25: p1<p2 | BO25: x1 | BP25: x2 | BR25: m | BS25: =(BO26+BP26)*BP28^(1/(BO26+BP26))*(BS26/BO26)^(BO26/(BO26+BP26))*(BS27/BP26)^(BP26/(BO26+BP26)) -> 131.8287105 | BY25: m | BZ25: p1 | CA25: x1 | CB25: p2 | CC25: x2 | CD25: k | CE25: x1* | CF25: x2* | CM25: m | CN25: p1 | CO25: x1 | CP25: p2 | CQ25: x2 | CR25: k | CS25: x1* | CT25: x2*
E26: ='Cobb-Douglas DH'!C20 -> 0.4 | F26: ='Cobb-Douglas DH'!E20 -> 0.6 | O26: p1 | P26: ='Regulares DH'!C7 -> 3 | Q26: =(P28*P29)+(Q30*P28)+(Q28*P29)+(Q28*Q30) -> 1,352.00 | R26: x1x2 | S26: bx1 | T26: ax2 | U26: ab | AO26: P1 transformado | AP26: =AR26*AT25 -> 1 | AQ26: p1 | AR26: ='CompPerf DH'!C7 -> 1 | AS26: b | AT26: ='CompPerf DH'!F9 -> 2.0 | BD26: X1 | BE26: =BE25/BE29 -> 100.00 | BF26: =BE29 -> 3 | BG26: =BE33*BE30 -> 6 | BN26: alfa | BO26: ='Cobb-DouglasD1 DH'!C20 -> 0.6 | BP26: ='Cobb-DouglasD1 DH'!E20 -> 0.6 | BQ26: beta | BR26: p1 | BS26: ='Cobb-DouglasD1 DH'!C7 -> 3 | BU26: =(BP28/(BO27^BO26))^(1/BP26) -> 13.18287105 | BY26: =BZ26*CA26+CB26*CC26 -> 299.9 | BZ26: ='Cuasilineal DH'!C7 -> 3.0 | CA26: =CE26 -> 10.0 | CB26: ='Cuasilineal DH'!E7 -> 30.0 | CC26: =CF26 -> 9.0 | CD26: ='Cuasilineal DH'!B20 -> 11.3 | CE26: =CB26/BZ26 -> 10.0 | CF26: =CD26-LN(CB26/BZ26) -> 9.0 | CM26: =CK33 -> 438.7 | CN26: =CL33 -> 2.0 | CO26: =CM33 -> 79.7 | CP26: =CN33 -> 4.0 | CQ26: =CO33 -> 69.8 | CR26: =CK46 -> 42.2 | CS26: =CM46 -> 79.7 | CT26: =CO46 -> 69.8
E27: =(B43*A43/B30)*(B30/B43)^B43*(D30/D43)^D43 -> 118.84 | F27: =(D43*A43/D30)*(B30/B43)^B43*(D30/D43)^D43 -> 89.13 | O27: p2 | P27: ='Regulares DH'!E7 -> 6 | Q27: a | AO27: P2 transformado | AP27: =AR27*AT26 -> 2 | AQ27: p2 | AR27: ='CompPerf DH'!E7 -> 1 | BD27: X2 | BE27: =BE25/BE30 -> 50.00 | BF27: =BE25/BF26 -> 100 | BG27: =BE25/BG26 -> 50 | BN27: equilibrio | BO27: =BO26*BP28^(1/(BO26+BP26))/BS26*(BS26/BO26)^(BO26/(BO26+BP26))*(BS27/BP26)^(BP26/(BO26+BP26)) -> 21.97145176 | BP27: =BP26*BP28^(1/(BO26+BP26))/BS27*(BS26/BO26)^(BO26/(BO26+BP26))*(BS27/BP26)^(BP26/(BO26+BP26)) -> 13.18287105 | BQ27: equilibrio | BR27: p2 | BS27: ='Cobb-DouglasD1 DH'!E7 -> 5 | CS27: =CS26*2 -> 159.3596247
E28: v=K | F28: =(E27^(E26))*(F27^(F26)) -> 100 | O28: x1* | P28: =(P30*(P27))-Q28 -> 54.00 | Q28: ='Regulares DH'!E20 -> -2 | AQ28: x1 | AR28: =MIN(AS28:AS29) -> 50 | AS28: =AR30/AT25 -> 100 | BD28: K | BE28: ='SustPerf DH'!B20 -> 100 | BF28: x1 | BG28: x2 | BP28: ='Cobb-DouglasD1 DH'!B20 -> 30 | BR28: maxx1 | BS28: =BS25/BS26 -> 43.94290351 | BZ28: max X1 | CA28: =BY26/BZ26 -> 99.97414907
A29: m | B29: p1 | C29: x1 | D29: p2 | E29: x2 | O29: x2* | P29: =(P30*P26)-Q30 -> 23.00 | Q29: b | AQ29: x2 | AR29: =MAX(AS28:AS29) -> 100 | AS29: =AR30/AT26 -> 50 | BD29: P1 | BE29: ='SustPerf DH'!$C$7 -> 3 | BF29: =BE25/BE29 -> 100 | BG29: =BE25/BE30 -> 50 | BR29: maxx2 | BS29: =BS25/BS27 -> 26.36574211 | BZ29: max X2 | CA29: =BY26/CB26 -> 9.997414907
A30: =A43*(B30/B43)^B43*(D30/D43)^D43 -> 594.2 | B30: ='Cobb-Douglas DH'!C7 -> 2.0 | C30: ='Cobb-Douglas DH'!D7 -> 118.8 | D30: ='Cobb-Douglas DH'!E7 -> 4.0 | E30: =A35 -> 89.1 | O30: lamda | P30: =(P25+(P26*Q28)+(P27*Q30))/(2*(P26*P27)) -> 8.67 | Q30: ='Regulares DH'!F20 -> 3 | AQ30: K | AR30: ='CompPerf DH'!B20 -> 100 | BD30: P2 | BE30: ='SustPerf DH'!$E$7 -> 6 | BF30: =BE25/BE29 -> 100 | BG30: =BE25/(BE30*(BE33)) -> 50 | BN30: =BO26/(BO26+BP26) -> 0.5 | BP30: =BO27^BO26*BP27^BP26 -> 30 | BS30: =BS26/BS27*-1 -> -0.6
A31: =C31+E31 -> 594.2008193 | C31: =C30*B30 -> 237.6803277 | E31: =E30*D30 -> 356.5204916 | BD31: X1* | BE31: =IF(BF26<=BG26,BE28,0) -> 100 | BG31: =IF(BF26<BG26,BG30,BG29) -> 50 | BN31: =BP28/BS26 -> 10 | CK31: RECTA PRESUPUESTAL
BD32: X2* | BE32: =IF(BF26>BG26,BE27,0) -> 0 | BN32: =(BS26/BO26)^(BO26/(BO26+BP26)) -> 2.236067977 | CK32: m | CL32: p1 | CM32: x1 | CN32: p2 | CO32: x2
A33: PARÁMETROS DE LA RECTA PRESUPUESTAL | BD33: Rel. 1 a: | BE33: ='SustPerf DH'!F8 -> 1.0 | BN33: =(BS27/BP26)^(BP26/(BO26+BP26)) -> 2.886751346 | CK33: =CL33*CM33+CN33*CO33 -> 438.7 | CL33: ='Stone-gearyDH'!C7 -> 2.0 | CM33: =CM46 -> 79.7 | CN33: ='Stone-gearyDH'!E7 -> 4.0 | CO33: =CO46 -> 69.8
A34: x2 | B34: b0 | C34: b1 | D34: x1 | BE34: ='SustPerf DH'!F8 -> 1 | BN34: =BN30*BN31*BN32*BN33 -> 32.27486122 | CK34: Inserte los datos correspondientes
A35: =B35+(C35*D35) -> 89.1 | B35: =A30/D30 -> 148.6 | C35: =B30/D30*-1 -> (0.5) | D35: =C30 -> 118.8
BD36: sip1<bp2 | BF36: si p1>p2 | CK36: PARÁMETROS DE LA RECTA PRESUPUESTAL
A37: Máxima cantidad de x1 | C37: =A30/B30 -> 297.1 | BD37: =$BF$27*BD3 -> 0 | BE37: =($BF$27*$BE$33)-($BE$33*BD37) -> 100.00 | BF37: =($BG$27)-((1/$BE$33)*BG37) -> 0 | BG37: =$BG$27*BE3*$BE$33 -> 50.00 | CK37: x2 | CL37: b0 | CM37: b1 | CN37: x1
A38: Máxima cantidad de x2 | C38: =A30/D30 -> 148.6 | BD38: 5.00 | BE38: =($BF$27*$BE$33)-($BE$33*BD38) -> 95.00 | BF38: 2.50 | BG38: =$BG$27*BE4*$BE$33 -> 47.50 | CK38: =CL38+(CM38*CN38) -> 69.8 | CL38: =CK33/CN33 -> 109.7 | CM38: =CL33/CN33*-1 -> (0.5) | CN38: =CM33 -> 79.7
A39: Precio relativo (<0) | C39: =(B30/D30)*(-1) -> (0.5) | BD39: 10.00 | BE39: 90.00 | BF39: 5.00 | BG39: 45.00
BD40: 15.00 | BE40: 85.00 | BF40: 7.50 | BG40: 42.50 | CK40: Máxima cantidad de x1 | CM40: =CK33/CL33 -> 219.4
A41: PARÁMETROS DE FUNCIÓN COBB-DOUGLAS | BD41: 20.00 | BE41: 80.00 | BF41: 10.00 | BG41: 40.00 | CK41: Máxima cantidad de x2 | CM41: =CK33/CN33 -> 109.7
A42: k | B42: a | C42: x1* | D42: 1-a | E42: x2* | BD42: 25.00 | BE42: 75.00 | BF42: 12.50 | BG42: 37.50 | CK42: Precio relativo (<0) | CM42: =(CL33/CN33)*(-1) -> (0.5)
A43: ='Cobb-Douglas DH'!B20 -> 100.0 | B43: ='Cobb-Douglas DH'!C20 -> 0.4 | C43: =E27 -> 118.8 | D43: =1-B43 -> 0.6 | E43: =F27 -> 89.1 | F43: =C43^(B43)*E43^(D43) -> 100 | BD43: 30.00 | BE43: 70.00 | BF43: 15.00 | BG43: 35.00
BD44: 35.00 | BE44: 65.00 | BF44: 17.50 | BG44: 32.50 | CK44: PARÁMETROS DE FUNCIÓN COBB-DOUGLAS
A45: determinante | B45: 0.00000 | C45: =B43*A43/C43*-1 -> -0.33659 | D45: =D43*A43/E43*-1 -> -0.67317 | F45: Determinante | BD45: 40.00 | BE45: 60.00 | BF45: 20.00 | BG45: 30.00 | CK45: k=v | CL45: a | CM45: x1* | CN45: 1-a | CO45: x2*
B46: =B43*A43/C43*-1 -> -0.33659 | C46: =(B43-1)*-1*(B43*C43^(B43-2)*E43^(D43)) -> 0.00170 | D46: =(1-B43)*(B43*-1*C43^(B43-1)*E43^(B43*-1)) -> -0.00227 | F46: =((B45*C46*D47)+(B46*C47*D45)+(B47*C45*D46))-((D45*C46*B47)+(C45*B46*D47)+(B45*D46*C47)) -> -0.007497103045 | BD46: 45.00 | BE46: 55.00 | BF46: 22.50 | BG46: 27.50 | CK46: ='Stone-gearyDH'!B20 -> 42.2 | CL46: ='Stone-gearyDH'!C20 -> 0.5 | CM46: =CK46*(CL46/CN46*CN33/CL33)^CN46+CM48 -> 79.7 | CN46: =1-CL46 -> 0.5 | CO46: =CK46*(CN46/CL46*CL33/CN33)^CL46+CO48 -> 69.8 | CQ46: =CK46*(CL46/CN46*CN33/CL33)^CN46+CM48 -> 79.68
B47: =D43*A43/E43*-1 -> -0.67317 | C47: =B43*D43*-1*C43^(B43-1)*E43^(B43) -> -0.08227 | D47: =B43*-1*D43*C43^(B43)*E43^((B43-1)) -> -0.10969 | F47: =IF(F46=0,"punto de silla",(IF(F46>0,"Máximo","Mínimo"))) -> Mínimo | BD47: 50.00 | BE47: 50.00 | BF47: 25.00 | BG47: 25.00 | CM47: s1 | CO47: s2
BD48: 55.00 | BE48: 45.00 | BF48: 27.50 | BG48: 22.50 | CM48: ='Stone-gearyDH'!D22 -> 20.0 | CO48: ='Stone-gearyDH'!F22 -> 40.0
BD49: 60.00 | BE49: 40.00 | BF49: 30.00 | BG49: 20.00
BD50: 65.00 | BE50: 35.00 | BF50: 32.50 | BG50: 17.50
BD51: 70.00 | BE51: 30.00 | BF51: 35.00 | BG51: 15.00
BD52: 75.00 | BE52: 25.00 | BF52: 37.50 | BG52: 12.50
BD53: 80.00 | BE53: 20.00 | BF53: 40.00 | BG53: 10.00
BD54: 85.00 | BE54: 15.00 | BF54: 42.50 | BG54: 7.50
BD55: 90.00 | BE55: 10.00 | BF55: 45.00 | BG55: 5.00
BD56: 95.00 | BE56: 5.00 | BF56: 47.50 | BG56: 2.50
BD57: 100.00 | BE57: 0 | BF57: =($BG$27)-((1/$BE$33)*BG57) -> 50.00 | BG57: 0

Sheet Cobb-DouglasD1 DH (hidden)
A1: EQUILIBRIO DEL CONSUMIDOR
A3: PREFERENCIAS COBB-DOUGLAS: ÓPTIMO INTERIOR
B5: RECTA DE GASTO
B6: m | C6: p1 | D6: x1 | E6: p2 | F6: x2
B7: ='Oculto DH'!BS25 -> 131.8 | C7: 3.0 | D7: =D20 -> 22.0 | E7: 5.0 | F7: =F20 -> 13.2
B8: Inserte los datos correspondientes
B10: PARÁMETROS DE LA RECTA DE GASTO
B11: x2 | C11: b0 | D11: b1 | E11: x1
B12: =C12+D12*E12 -> 13.2 | C12: =B7/E7 -> 26.4 | D12: =C7/E7*-1 -> (0.6) | E12: =D20 -> 22.0
B18: PARÁMETROS DE FUNCIÓN COBB-DOUGLAS
B19: u | C19: a | D19: x1* | E19: b | F19: x2*
B20: 30.0 | C20: 0.6 | D20: ='Oculto DH'!BO27 -> 22.0 | E20: 0.6 | F20: ='Oculto DH'!BP27 -> 13.2
B23: Títulos
B24: Resultados
B25: Insertar datos
B26: Cantidad de equilibrio

Sheet SustPerf DH (hidden)
A1: EQUILIBRIO DEL CONSUMIDOR
A3: SUSTITUTOS PERFECTOS: ÓPTIMO DE ESQUINA
B5: RECTA PRESUPUESTAL
B6: m | C6: p1 | D6: x1 | E6: p2 | F6: x2
B7: ='Oculto DH'!BE25 -> 300.0 | C7: 3.0 | D7: =C20 -> 100.0 | E7: 6.0 | F7: =D20 -> 0.0
B8: Inserte los datos correspondientes | E8: Rel. 1 a: | F8: 1.0
B10: PARÁMETROS DE LA RECTA PRESUPUESTAL
B11: x2 | C11: b0 | D11: b1 | E11: x1
B12: =C12+(D12*E12) -> 0.0 | C12: =B7/E7 -> 50.0 | D12: =C7/E7*-1 -> -0.5 | E12: =D7 -> 100.0
B14: Máxima cantidad de x1 | D14: =B7/C7 -> 100.0
B15: Máxima cantidad de x2 | D15: =B7/(E7*F8) -> 50.0
B16: Precio relativo (<0) | D16: =(C7/E7)*(-1) -> -0.5
B18: PARÁMETROS DE LA CURVA DE INDIFERENCIA
B19: u | C19: x1* | D19: x2*
B20: 100.0 | C20: ='Oculto DH'!BE31 -> 100.0 | D20: ='Oculto DH'!BE32 -> 0.0
B23: Títulos
B24: Resultados
B25: Insertar datos
B26: Cantidad de equilibrio

Sheet Neutrales DH (hidden)
A1: EQUILIBRIO DEL CONSUMIDOR
A3: NEUTRALES: ÓPTIMO DE ESQUINA
B5: RECTA PRESUPUESTAL
B6: m | C6: p1 | D6: x1 | E6: p2 | F6: x2
B7: =C7*B20 -> 300.0 | C7: 3.0 | D7: =C20 -> 100.0 | E7: 10.0 | F7: =D20 -> 0.0
B8: Inserte los datos correspondientes
B10: PARÁMETROS DE LA RECTA PRESUPUESTAL
B11: x2 | C11: b0 | D11: b1 | E11: x1
B12: 1.0 | C12: =B7/E7 -> 30.0 | D12: =C7/E7*-1 -> -0.3 | E12: 10.0
B14: Máxima cantidad de x1 | D14: =B7/C7 -> 100.0
B15: Máxima cantidad de x2 | D15: =B7/E7 -> 30.0
B16: Precio relativo (<0) | D16: =(C7/E7)*(-1) -> -0.3
B18: PARÁMETROS DE LA CURVA DE INDIFERENCIA
B19: u | C19: x1* | D19: x2*
B20: 100.0 | C20: ='Oculto DH'!AB23 -> 100.0 | D20: ='Oculto DH'!AE3 -> 0.0
B23: Títulos
B24: Resultados
B25: Insertar datos
B26: Cantidad de equilibrio

Sheet Males DH (hidden)
A1: EQUILIBRIO DEL CONSUMIDOR
A3: MALES: ÓPTIMO DE ESQUINA
B5: RECTA DEL GASTO (e)
B6: m | C6: p1 | D6: x1 | E6: p2 | F6: x2
B7: =B20*C7 -> 300.0 | C7: 3.0 | D7: =D20 -> 100.0 | E7: 6.0 | F7: =F20 -> 0.0
B8: Inserte los datos correspondientes
B10: PARÁMETROS DE LA RECTA DEL GASTO
B11: x2 | C11: b0 | D11: b1 | E11: x1
B12: =C12+(D12*E12) -> 0.0 | C12: =B7/E7 -> 50.0 | D12: =C7/E7*-1 -> -0.5 | E12: =D7 -> 100.0
B14: Máxima canti. de x1 | D14: =B7/C7 -> 100.0
B15: Máxima canti. de x2 | D15: =B7/E7 -> 50.0
B16: Precio relativo (<0) | D16: =(C7/E7)*(-1) -> -0.5
B18: PARÁMETROS DE LA CURVA DE INDIFERENCIA
B19: u | C19: a | D19: x1* | E19: b | F19: x2*
B20: 100.0 | C20: 1.0 | D20: ='Oculto DH'!AJ23 -> 100.0 | E20: 1.0 | F20: ='Oculto DH'!AK23 -> 0.0
B23: Títulos
B24: Resultados
B25: Insertar datos
B26: Cantidad de equilibrio

Sheet Regulares DH (hidden)
A1: EQUILIBRIO DEL CONSUMIDOR
A3: PREFERENCIAS POLINOMIALES: ÓPTIMO INTERIOR
B4: RECTA PRESUPUESTARIA
B6: m | C6: p1 | D6: x1 | E6: p2 | F6: x2
B7: 300.0 | C7: 3.0 | D7: 5.0 | E7: 6.0 | F7: 5.0
B8: Inserte los datos correspondientes
B10: PARÁMETROS DE LA RECTA PRESUPUESTAL
B11: x2 | C11: b0 | D11: b1 | E11: x1
B12: =C12+(D12*E12) -> 47.5 | C12: =B7/E7 -> 50.0 | D12: =C7/E7*-1 -> (0.5) | E12: =D7 -> 5.0
B14: Máxima cantidad de x1 | D14: =B7/C7 -> 100.0
B15: Máxima cantidad de x2 | D15: =B7/E7 -> 50.0
B16: Precio relativo (<0) | D16: =(C7/E7)*(-1) -> (0.5)
B18: PARÁMETROS DE LA FUNCIÓN
B19: k | C19: x1* | D19: x2* | E19: a | F19: b
B20: ='Oculto DH'!Q26 -> 1,352.0 | C20: ='Oculto DH'!V13 -> 54.0 | D20: ='Oculto DH'!W13 -> 23.0 | E20: (2.0) | F20: 3.0
B23: Títulos
B24: Resultados
B25: Insertar datos
B26: Cantidad de equilibrio

Sheet CompPerf DH (hidden)
A1: EQUILIBRIO DEL CONSUMIDOR
A3: COMPLEMENTOS PERFECTOS
B5: RECTA DEL GASTO (e)
B6: m | C6: p1 | D6: x1 | E6: p2 | F6: x2
B7: ='Oculto DH'!AR25 -> 150.0 | C7: 1.0 | D7: =C20 -> 50.0 | E7: 1.0 | F7: =D20 -> 100.0
B8: Inserte los datos correspondientes
B9: Proporción | C9: a | D9: ='Oculto DH'!AT25 -> 1.0 | E9: b | F9: 2.0
B10: PARÁMETROS DE LA RECTA DEL GASTO
B11: x2 | C11: b0 | D11: b1 | E11: x1
B12: =C12+(D12*E12) -> 100.0 | C12: =B7/E7 -> 150.0 | D12: =C7/E7*-1 -> -1.0 | E12: =D7 -> 50.0
B14: Máxima cantidad de x1 | D14: =B7/C7*D9 -> 150.0
B15: Máxima cantidad de x2 | D15: =B7/(E7*F9) -> 75.0
B16: Precio relativo (<0) | D16: =(C7/E7)*(-1) -> -1.0
B18: PARÁMETROS DE LA CURVA DE INDIFERENCIA
B19: u | C19: x1* | D19: x2*
B20: 100.0 | C20: ='Oculto DH'!AR28 -> 50.0 | D20: ='Oculto DH'!AR29 -> 100.0
B23: Títulos
B24: Resultados
B25: Insertar datos
B26: Cantidad de equilibrio

Sheet Cuasilineal DH (hidden)
A1: EQUILIBRIO DEL CONSUMIDOR
A3: CUASILINEALES
B5: RECTA DEL GASTO (e)
B6: m | C6: p1 | D6: x1 | E6: p2 | F6: x2
B7: ='Oculto DH'!BY26 -> 299.9 | C7: 3.0 | D7: =C20 -> 10.0 | E7: 30.0 | F7: =D20 -> 9.0
B8: Inserte los datos correspondientes
B10: PARÁMETROS DE LA RECTA DEL GASTO
B11: x2 | C11: b0 | D11: b1 | E11: x1
B12: =C12+(D12*E12) -> 9.0 | C12: =B7/E7 -> 10.0 | D12: =C7/E7*-1 -> -0.1 | E12: =D7 -> 10.0
B14: Máxima cantidad de x1 | D14: =B7/C7 -> 100.0
B15: Máxima cantidad de x2 | D15: =B7/E7 -> 10.0
B16: Precio relativo (<0) | D16: =C7/E7*-1 -> -0.1
B18: PARÁMETROS DE LA CURVA DE INDIFERENCIA
B19: u | C19: x1* | D19: x2*
B20: 11.3 | C20: ='Oculto DH'!CE26 -> 10.0 | D20: ='Oculto DH'!CF26 -> 9.0
B23: Títulos
B24: Resultados
B25: Insertar datos
B26: Cantidad de equilibrio

Sheet Stone-gearyDH (hidden)
A1: EQUILIBRIO DEL CONSUMIDOR
A3: PREFERENCIAS STONE-GEARY: ÓPTIMO INTERIOR
B5: RECTA PRESUPUESTAL
B6: m | C6: p1 | D6: x1 | E6: p2 | F6: x2
B7: ='Oculto DH'!CK33 -> 438.7 | C7: 2.0 | D7: =D20 -> 79.7 | E7: 4.0 | F7: =F20 -> 69.8
B8: Inserte los datos correspondientes
B10: PARÁMETROS DE LA RECTA PRESUPUESTAL
B11: x2 | C11: b0 | D11: b1 | E11: x1
B12: =C12+(D12*E12) -> 69.8 | C12: =B7/E7 -> 109.7 | D12: =C7/E7*-1 -> (0.5) | E12: =D7 -> 79.7
B14: Máxima cantidad de x1 | D14: =B7/C7 -> 219.4
B15: Máxima cantidad de x2 | D15: =B7/E7 -> 109.7
B16: Precio relativo (<0) | D16: =(C7/E7)*(-1) -> (0.5)
B18: PARÁMETROS DE FUNCIÓN COBB-DOUGLAS
B19: u | C19: a | D19: x1* | E19: 1-a | F19: x2*
B20: 42.2 | C20: 0.5 | D20: ='Oculto DH'!CM46 -> 79.7 | E20: ='Oculto DH'!CN46 -> 0.5 | F20: ='Oculto DH'!CO46 -> 69.8
D21: s1 | F21: s2
D22: 20.0 | F22: 40.0
B26: Títulos
B27: Resultados
B28: Insertar datos
B29: Cantidad de equilibrio
